[Event "GrandPrix_29.05"]
[Site "Chess.com"]
[Date "2020.05.29"]
[Round "6"]
[White "Baron_von_Koenig"]
[Black "GM_RobertoMogranzini"]
[Result "0-1"]
[WhiteElo "2044"]
[BlackElo "2077"]
[TimeControl "600+2"]
[EndTime "12:03:06 PDT"]
[Termination "GM_RobertoMogranzini won by resignation"]

1. Nc3 {[%clk 0:10:01.9]} 1... c5 {[%clk 0:10:00.1]} 2. Nf3 {[%clk 0:10:02.2]}
2... g6 {[%clk 0:09:58.4]} 3. d4 {[%clk 0:10:02.7]} 3... cxd4 {[%clk 0:09:59.3]}
4. Qxd4 {[%clk 0:10:03.6]} 4... Nf6 {[%clk 0:10:00.5]} 5. Qh4 {[%clk 0:10:03.4]}
5... Bg7 {[%clk 0:10:00.5]} 6. e4 {[%clk 0:10:00.7]} 6... d6 {[%clk 0:09:55.9]}
7. Bh6 {[%clk 0:10:01]} 7... Bxh6 {[%clk 0:09:55.3]} 8. Qxh6 {[%clk 0:10:01.8]}
8... Qa5 {[%clk 0:09:07.9]} 9. O-O-O {[%clk 0:09:46.4]} 9... Be6 {[%clk
0:09:07.3]} 10. a3 {[%clk 0:09:46.9]} 10... Nc6 {[%clk 0:09:05.5]} 11. Ng5
{[%clk 0:09:15.3]} 11... Rc8 {[%clk 0:08:54.6]} 12. Nxe6 {[%clk 0:09:13.3]}
12... fxe6 {[%clk 0:08:56.5]} 13. Bc4 {[%clk 0:08:39.9]} 13... Nd8 {[%clk
0:08:36.8]} 14. Qg7 {[%clk 0:07:03]} 14... Qg5+ {[%clk 0:07:20]} 15. Kb1 {[%clk
0:06:57.4]} 15... Rg8 {[%clk 0:07:19.9]} 16. h4 {[%clk 0:06:58.4]} 16... Qh5
{[%clk 0:07:03.1]} 17. g4 {[%clk 0:06:59.2]} 17... Qxg4 {[%clk 0:06:59.2]} 18.
Bb5+ {[%clk 0:06:57.4]} 18... Nc6 {[%clk 0:06:59.9]} 19. Qh6 {[%clk 0:06:58.8]}
19... Qh5 {[%clk 0:06:35.4]} 20. Qe3 {[%clk 0:06:48.5]} 20... a6 {[%clk
0:06:34.4]} 21. Ba4 {[%clk 0:06:44.7]} 21... Nd7 {[%clk 0:06:23.1]} 22. Bb3
{[%clk 0:06:35.1]} 22... Nd8 {[%clk 0:06:11.2]} 23. f4 {[%clk 0:06:27.3]} 23...
Rf8 {[%clk 0:06:04.3]} 24. Ne2 {[%clk 0:05:49]} 24... Qc5 {[%clk 0:05:59]} 25.
Qh3 {[%clk 0:05:40.6]} 25... Qf2 {[%clk 0:05:43.6]} 26. Rh2 {[%clk 0:05:40.9]}
26... Qc5 {[%clk 0:05:35.7]} 27. Rd3 {[%clk 0:05:11.3]} 27... Qa5 {[%clk
0:04:42.4]} 28. Rd1 {[%clk 0:03:37]} 28... Nc5 {[%clk 0:04:36.1]} 29. h5 {[%clk
0:03:38.3]} 29... Nxb3 {[%clk 0:04:30.2]} 30. Qxb3 {[%clk 0:03:23.7]} 30... gxh5
{[%clk 0:04:24.9]} 31. Rdh1 {[%clk 0:03:24.2]} 31... Rc5 {[%clk 0:04:20]} 32.
Qf3 {[%clk 0:03:19.2]} 32... Qd2 {[%clk 0:03:59.5]} 33. c3 {[%clk 0:03:02.2]}
33... Rb5 {[%clk 0:03:27.4]} 34. Nd4 {[%clk 0:03:02.6]} 34... Rxb2+ {[%clk
0:03:27]} 35. Ka1 {[%clk 0:03:02.4]} 35... Qxh2 {[%clk 0:03:06.7]} 36. Rxh2
{[%clk 0:03:02.4]} 36... Rxh2 {[%clk 0:03:08.6]} 37. Qg3 {[%clk 0:03:01.1]}
37... Rh1+ {[%clk 0:02:48.9]} 38. Kb2 {[%clk 0:03:01.3]} 38... Rf1 {[%clk
0:02:28.9]} 39. Ne2 {[%clk 0:02:51.4]} 39... Kd7 {[%clk 0:02:22.8]} 40. Qh3
{[%clk 0:02:48.6]} 40... Rf2 {[%clk 0:02:19.4]} 41. Qxh5 {[%clk 0:02:49.5]}
41... R8xf4 {[%clk 0:02:16.1]} 42. Kb3 {[%clk 0:02:50.7]} 42... Rxe4 {[%clk
0:02:13]} 43. Nd4 {[%clk 0:02:51.7]} 43... Rf7 {[%clk 0:01:52]} 44. Qh1 {[%clk
0:02:23.1]} 44... Re5 {[%clk 0:01:47.7]} 45. Nc2 {[%clk 0:01:56.2]} 45... Rb5+
{[%clk 0:01:40.6]} 46. Nb4 {[%clk 0:01:54.6]} 46... a5 {[%clk 0:01:23]} 47. Ka4
{[%clk 0:01:43.4]} 47... Rc5 {[%clk 0:01:17.7]} 48. Nd3 {[%clk 0:01:31.3]} 48...
Rxc3 {[%clk 0:01:15.4]} 49. Qe4 {[%clk 0:01:32.7]} 49... Nc6 {[%clk 0:01:03.7]}
50. Nf4 {[%clk 0:01:24.5]} 50... Rf6 {[%clk 0:00:43.7]} 51. Ne2 {[%clk
0:01:17.5]} 51... Rc5 {[%clk 0:00:41.9]} 52. Nf4 {[%clk 0:01:00.9]} 52... h5
{[%clk 0:00:34.2]} 53. Nd3 {[%clk 0:00:57.9]} 53... Rc3 {[%clk 0:00:32.6]} 54.
Kb5 {[%clk 0:00:54]} 54... h4 {[%clk 0:00:24.7]} 55. Nf4 {[%clk 0:00:31.7]}
55... Rf5+ {[%clk 0:00:25.4]} 56. Ka4 {[%clk 0:00:31.8]} 56... Re5 {[%clk
0:00:24.1]} 57. Qb1 {[%clk 0:00:29.1]} 57... b5+ {[%clk 0:00:25]} 0-1

[Event "GrandPrix_29.05"]
[Site "Chess.com"]
[Date "2020.05.29"]
[Round "6"]
[White "ulkaf961"]
[Black "Hero_in_my_life"]
[Result "1-0"]
[WhiteElo "2129"]
[BlackElo "2116"]
[TimeControl "600+2"]
[EndTime "12:03:09 PDT"]
[Termination "ulkaf961 won by resignation"]

1. e4 {[%clk 0:10:01.9]} 1... c6 {[%clk 0:09:59.7]} 2. c4 {[%clk 0:09:59.1]}
2... d5 {[%clk 0:09:52.8]} 3. cxd5 {[%clk 0:09:59.4]} 3... cxd5 {[%clk
0:09:54.7]} 4. exd5 {[%clk 0:10:00.2]} 4... Nf6 {[%clk 0:09:54.8]} 5. Nc3 {[%clk
0:09:39.9]} 5... Nxd5 {[%clk 0:09:51]} 6. d4 {[%clk 0:09:40.4]} 6... e6 {[%clk
0:09:46.1]} 7. Nf3 {[%clk 0:09:27.2]} 7... Bb4 {[%clk 0:09:41.1]} 8. Bd2 {[%clk
0:09:27.6]} 8... O-O {[%clk 0:09:39.2]} 9. Bd3 {[%clk 0:09:26.9]} 9... Nc6
{[%clk 0:09:35.2]} 10. O-O {[%clk 0:09:23.8]} 10... Be7 {[%clk 0:09:34.8]} 11.
a3 {[%clk 0:08:55.8]} 11... Bf6 {[%clk 0:09:22.8]} 12. Ne4 {[%clk 0:08:50.1]}
12... Nxd4 {[%clk 0:09:04.6]} 13. Nxf6+ {[%clk 0:08:48.7]} 13... Qxf6 {[%clk
0:09:03.5]} 14. Nxd4 {[%clk 0:08:45.7]} 14... Qxd4 {[%clk 0:09:03.9]} 15. Bb4
{[%clk 0:08:29]} 15... Qf6 {[%clk 0:08:52.2]} 16. Bxf8 {[%clk 0:08:01]} 16...
Kxf8 {[%clk 0:08:54.1]} 17. Qa4 {[%clk 0:07:40.4]} 17... Qe7 {[%clk 0:08:35.9]}
18. Qe4 {[%clk 0:07:25.7]} 18... g6 {[%clk 0:08:18.6]} 19. Bc4 {[%clk
0:06:57.7]} 19... Nf6 {[%clk 0:07:58.6]} 20. Qf3 {[%clk 0:06:50.7]} 20... Rb8
{[%clk 0:07:45.8]} 21. Qg3 {[%clk 0:06:17.7]} 21... Ra8 {[%clk 0:07:45.8]} 22.
Rad1 {[%clk 0:05:16.5]} 22... Bd7 {[%clk 0:07:36.2]} 23. Qe5 {[%clk 0:05:05.3]}
23... Bc6 {[%clk 0:07:26.9]} 24. Rd6 {[%clk 0:04:59.2]} 24... Rd8 {[%clk
0:06:06]} 25. Rfd1 {[%clk 0:04:40.5]} 25... Rxd6 {[%clk 0:06:05.9]} 26. Rxd6
{[%clk 0:04:39.8]} 26... Kg8 {[%clk 0:05:29.3]} 27. Rd4 {[%clk 0:03:10]} 27...
Nd7 {[%clk 0:05:05.1]} 28. Qe3 {[%clk 0:02:07.6]} 28... a6 {[%clk 0:04:42.6]}
29. h4 {[%clk 0:01:18.7]} 29... h5 {[%clk 0:04:28.4]} 30. Qg5 {[%clk 0:01:05.1]}
30... Qxg5 {[%clk 0:04:19.4]} 31. hxg5 {[%clk 0:01:05.9]} 31... Kf8 {[%clk
0:04:20.4]} 32. b4 {[%clk 0:00:56.7]} 32... Ke7 {[%clk 0:04:17.9]} 33. Bb3
{[%clk 0:00:54.2]} 33... Nb6 {[%clk 0:03:53]} 34. g4 {[%clk 0:00:43.8]} 34...
hxg4 {[%clk 0:03:46.5]} 35. Rxg4 {[%clk 0:00:44.6]} 35... Nc8 {[%clk 0:03:45.1]}
36. Rh4 {[%clk 0:00:44]} 36... Nd6 {[%clk 0:03:44.2]} 37. Bc2 {[%clk 0:00:42.5]}
37... b5 {[%clk 0:03:31.2]} 38. Bd3 {[%clk 0:00:41.3]} 38... e5 {[%clk
0:03:20.5]} 39. Kh2 {[%clk 0:00:31.7]} 39... Ke6 {[%clk 0:03:15.8]} 40. Rh7
{[%clk 0:00:26.7]} 40... e4 {[%clk 0:03:12.4]} 41. Bc2 {[%clk 0:00:27.8]} 41...
Bd5 {[%clk 0:03:00.7]} 42. Kg3 {[%clk 0:00:25.8]} 42... Kf5 {[%clk 0:02:53.7]}
43. f4 {[%clk 0:00:26.9]} 43... Nc4 {[%clk 0:02:46.2]} 44. Rh8 {[%clk 0:00:28]}
44... Nxa3 {[%clk 0:02:37.7]} 45. Re8 {[%clk 0:00:27.1]} 45... Be6 {[%clk
0:02:27.8]} 46. Bb3 {[%clk 0:00:25.3]} 46... Nc4 {[%clk 0:01:11.7]} 47. Ra8
{[%clk 0:00:25.3]} 47... Ne3 {[%clk 0:00:34.3]} 48. Bxe6+ {[%clk 0:00:24]} 48...
Kxe6 {[%clk 0:00:36.2]} 49. Rxa6+ {[%clk 0:00:23.9]} 49... Kd5 {[%clk
0:00:36.7]} 50. Rf6 {[%clk 0:00:19.1]} 50... Nf5+ {[%clk 0:00:37.4]} 51. Kf2
{[%clk 0:00:16.5]} 51... e3+ {[%clk 0:00:37.4]} 52. Ke1 {[%clk 0:00:13.6]} 52...
Ke4 {[%clk 0:00:36.9]} 53. Rxf7 {[%clk 0:00:14.6]} 53... Kf3 {[%clk 0:00:33.2]}
54. Rxf5 {[%clk 0:00:14.6]} 1-0

[Event "GrandPrix_29.05"]
[Site "Chess.com"]
[Date "2020.05.29"]
[Round "6"]
[White "Hakob-Hakobyan-Arm"]
[Black "EvgenyPigusov"]
[Result "0-1"]
[WhiteElo "2110"]
[BlackElo "2294"]
[TimeControl "600+2"]
[EndTime "12:03:23 PDT"]
[Termination "EvgenyPigusov won by resignation"]

1. Nf3 {[%clk 0:09:56.2]} 1... c5 {[%clk 0:09:57.8]} 2. c4 {[%clk 0:09:56.8]}
2... g6 {[%clk 0:09:58]} 3. d4 {[%clk 0:09:57.6]} 3... cxd4 {[%clk 0:09:58.2]}
4. Nxd4 {[%clk 0:09:59.5]} 4... Nc6 {[%clk 0:09:57.8]} 5. e4 {[%clk 0:10:00.9]}
5... Nf6 {[%clk 0:09:55.9]} 6. Nc3 {[%clk 0:10:01.7]} 6... d6 {[%clk 0:09:56.7]}
7. Be2 {[%clk 0:10:02.7]} 7... Nxd4 {[%clk 0:09:57]} 8. Qxd4 {[%clk 0:10:03.3]}
8... Bg7 {[%clk 0:09:58.2]} 9. Be3 {[%clk 0:10:04.7]} 9... O-O {[%clk
0:09:58.8]} 10. Qd2 {[%clk 0:10:05]} 10... a5 {[%clk 0:09:57.8]} 11. O-O {[%clk
0:10:05.5]} 11... a4 {[%clk 0:09:57.5]} 12. f3 {[%clk 0:09:53.8]} 12... Qa5
{[%clk 0:09:55.6]} 13. Rab1 {[%clk 0:09:47]} 13... Be6 {[%clk 0:09:51.3]} 14. b4
{[%clk 0:09:34.6]} 14... axb3 {[%clk 0:09:49.4]} 15. axb3 {[%clk 0:09:36.5]}
15... Rfc8 {[%clk 0:08:32.7]} 16. Rfc1 {[%clk 0:09:25.9]} 16... Qb4 {[%clk
0:08:17.9]} 17. Qc2 {[%clk 0:07:28]} 17... Nd7 {[%clk 0:07:54.4]} 18. Nb5 {[%clk
0:06:54.7]} 18... Qa5 {[%clk 0:07:33.6]} 19. Nd4 {[%clk 0:06:43.4]} 19... Qa2
{[%clk 0:07:17.9]} 20. Nxe6 {[%clk 0:06:07.8]} 20... fxe6 {[%clk 0:06:47.4]} 21.
b4 {[%clk 0:05:48.2]} 21... Qxc2 {[%clk 0:05:41.8]} 22. Rxc2 {[%clk 0:05:50.1]}
22... b6 {[%clk 0:05:40.3]} 23. f4 {[%clk 0:05:36.2]} 23... Kf7 {[%clk
0:05:35.4]} 24. c5 {[%clk 0:04:38.4]} 24... bxc5 {[%clk 0:05:28.9]} 25. Bb5
{[%clk 0:04:39.6]} 25... Nf6 {[%clk 0:05:10]} 26. bxc5 {[%clk 0:04:34.7]} 26...
Ng4 {[%clk 0:05:06]} 27. Bf2 {[%clk 0:03:35.2]} 27... Nxf2 {[%clk 0:05:01.7]}
28. Kxf2 {[%clk 0:03:37.1]} 28... Bd4+ {[%clk 0:04:54.4]} 29. Kf1 {[%clk
0:03:35.2]} 29... Rxc5 {[%clk 0:04:13.2]} 30. Rxc5 {[%clk 0:03:35]} 30... Bxc5
{[%clk 0:04:13.3]} 31. Rb2 {[%clk 0:02:12.8]} 31... Ra3 {[%clk 0:03:47.8]} 32.
g3 {[%clk 0:01:52.6]} 32... Kf6 {[%clk 0:03:37.3]} 33. Rc2 {[%clk 0:01:52.1]}
33... g5 {[%clk 0:03:24.8]} 34. Kg2 {[%clk 0:01:35.8]} 34... Be3 {[%clk
0:02:56.2]} 35. e5+ {[%clk 0:01:26.2]} 35... dxe5 {[%clk 0:02:26.2]} 36. fxg5+
{[%clk 0:01:27.2]} 36... Kxg5 {[%clk 0:02:22]} 37. Re2 {[%clk 0:01:27.9]} 37...
e4 {[%clk 0:02:20.9]} 38. h4+ {[%clk 0:01:20.6]} 38... Kf5 {[%clk 0:02:21.5]}
39. Bc6 {[%clk 0:01:16.7]} 39... Ke5 {[%clk 0:02:22]} 40. Bd7 {[%clk 0:01:11.1]}
40... Kd4 {[%clk 0:02:20.2]} 41. Bxe6 {[%clk 0:01:10.9]} 41... Kd3 {[%clk
0:02:20]} 42. Bg4 {[%clk 0:01:12.4]} 42... Bd4 {[%clk 0:02:13.4]} 43. Re1 {[%clk
0:01:07.3]} 43... Ra2+ {[%clk 0:02:12.3]} 44. Kh3 {[%clk 0:01:07.8]} 44... e3
{[%clk 0:02:05.8]} 45. Rd1+ {[%clk 0:01:03.6]} 45... Rd2 {[%clk 0:02:00.3]} 46.
Bf5+ {[%clk 0:00:58.3]} 46... Ke2 {[%clk 0:01:46.6]} 47. Rg1 {[%clk 0:00:51.9]}
47... Kf2 {[%clk 0:01:32.6]} 48. Rg2+ {[%clk 0:00:52.9]} 48... Kf1 {[%clk
0:01:29.2]} 49. Rxd2 {[%clk 0:00:25]} 49... exd2 {[%clk 0:01:29.6]} 50. Bc2
{[%clk 0:00:26.9]} 50... Ke1 {[%clk 0:01:25.9]} 51. Kg4 {[%clk 0:00:28.3]} 51...
Bf2 {[%clk 0:01:25.1]} 52. Kf3 {[%clk 0:00:28.5]} 52... h6 {[%clk 0:01:21.2]}
53. Bb3 {[%clk 0:00:27.2]} 53... Bd4 {[%clk 0:01:10.7]} 54. Ke4 {[%clk
0:00:24.4]} 54... Bb2 {[%clk 0:01:02.5]} 55. Kf5 {[%clk 0:00:21.2]} 55... d1=Q
{[%clk 0:01:02.1]} 56. Bxd1 {[%clk 0:00:22.5]} 56... Kxd1 {[%clk 0:01:02.5]} 57.
g4 {[%clk 0:00:22.4]} 57... Ke2 {[%clk 0:00:54.4]} 58. g5 {[%clk 0:00:23.5]}
58... h5 {[%clk 0:00:52]} 59. Ke6 {[%clk 0:00:24.2]} 59... Kf3 {[%clk
0:00:51.8]} 60. Kxe7 {[%clk 0:00:18.3]} 60... Kg4 {[%clk 0:00:52.9]} 61. Ke6
{[%clk 0:00:16.4]} 61... Kxh4 {[%clk 0:00:53.7]} 62. Kf5 {[%clk 0:00:17.9]}
62... Kg3 {[%clk 0:00:54.5]} 0-1

[Event "GrandPrix_29.05"]
[Site "Chess.com"]
[Date "2020.05.29"]
[Round "6"]
[White "GM_dmitrij"]
[Black "DinaBelenkaya"]
[Result "1-0"]
[WhiteElo "2482"]
[BlackElo "1599"]
[TimeControl "600+2"]
[EndTime "12:03:28 PDT"]
[Termination "GM_dmitrij won by resignation"]

1. e4 {[%clk 0:10:01.9]} 1... d5 {[%clk 0:09:59.7]} 2. exd5 {[%clk 0:10:02.7]}
2... Qxd5 {[%clk 0:10:00.9]} 3. Nc3 {[%clk 0:10:04.2]} 3... Qa5 {[%clk
0:10:01.9]} 4. d4 {[%clk 0:10:02.5]} 4... Nf6 {[%clk 0:09:58.8]} 5. Nf3 {[%clk
0:10:02]} 5... c6 {[%clk 0:09:54.3]} 6. Bd2 {[%clk 0:10:02.1]} 6... Qb6 {[%clk
0:09:32.9]} 7. Bc4 {[%clk 0:09:57.9]} 7... Bf5 {[%clk 0:09:27.5]} 8. Ne5 {[%clk
0:09:50.1]} 8... e6 {[%clk 0:09:11.8]} 9. Ne2 {[%clk 0:09:07.8]} 9... Nbd7
{[%clk 0:08:47.3]} 10. O-O {[%clk 0:08:56]} 10... Nxe5 {[%clk 0:07:28.7]} 11.
dxe5 {[%clk 0:08:56.2]} 11... Nd5 {[%clk 0:07:27.1]} 12. Bb3 {[%clk 0:08:46.5]}
12... Bc5 {[%clk 0:07:16.7]} 13. Ng3 {[%clk 0:08:41.2]} 13... Bg6 {[%clk
0:06:52.3]} 14. Qe2 {[%clk 0:08:36.3]} 14... a5 {[%clk 0:06:34]} 15. a4 {[%clk
0:08:33.4]} 15... O-O {[%clk 0:06:31.5]} 16. h4 {[%clk 0:08:32.8]} 16... h6
{[%clk 0:06:24.8]} 17. h5 {[%clk 0:08:33]} 17... Bh7 {[%clk 0:06:24.5]} 18. Ne4
{[%clk 0:08:34.4]} 18... Bd4 {[%clk 0:06:04.4]} 19. Nd6 {[%clk 0:08:10.3]} 19...
Bxb2 {[%clk 0:03:38.6]} 20. Nc4 {[%clk 0:07:19.2]} 20... Qd4 {[%clk 0:03:39.7]}
21. Rad1 {[%clk 0:07:19.2]} 21... Bc3 {[%clk 0:03:32.9]} 22. Bxh6 {[%clk
0:06:44.3]} 22... Qh4 {[%clk 0:03:14.8]} 23. Bc1 {[%clk 0:06:33.1]} 23... Bd4
{[%clk 0:03:00.5]} 24. Qf3 {[%clk 0:06:05.6]} 24... c5 {[%clk 0:02:51.4]} 25.
Rde1 {[%clk 0:04:41.6]} 25... Nc3 {[%clk 0:02:38]} 26. Nd6 {[%clk 0:04:01.4]}
26... b5 {[%clk 0:01:47.8]} 27. Bd2 {[%clk 0:03:16.8]} 27... b4 {[%clk
0:01:16.1]} 28. g3 {[%clk 0:03:14.9]} 28... Qh3 {[%clk 0:01:10.1]} 29. Be3
{[%clk 0:02:31.1]} 29... Rad8 {[%clk 0:00:45.3]} 30. Bg5 {[%clk 0:01:26.2]}
30... Rd7 {[%clk 0:00:30.5]} 31. Bf4 {[%clk 0:01:27.6]} 31... Rxd6 {[%clk
0:00:28.9]} 32. exd6 {[%clk 0:01:26.6]} 32... Kh8 {[%clk 0:00:16.3]} 33. Be5
{[%clk 0:01:12]} 33... Rd8 {[%clk 0:00:07.3]} 34. Bxd4 {[%clk 0:00:32.4]} 34...
cxd4 {[%clk 0:00:09.2]} 35. Qxf7 {[%clk 0:00:33.7]} 35... Be4 {[%clk 0:00:05.9]}
36. Rxe4 {[%clk 0:00:25.4]} 36... Nxe4 {[%clk 0:00:07.8]} 37. Bxe6 {[%clk
0:00:26.7]} 37... Ng5 {[%clk 0:00:08.8]} 38. Bxh3 {[%clk 0:00:21.5]} 38... Nxf7
{[%clk 0:00:09.9]} 39. d7 {[%clk 0:00:23.4]} 39... Ne5 {[%clk 0:00:10.1]} 40.
Rd1 {[%clk 0:00:22.1]} 40... d3 {[%clk 0:00:10.1]} 41. Kg2 {[%clk 0:00:09.9]}
41... dxc2 {[%clk 0:00:06.8]} 42. Rc1 {[%clk 0:00:11.4]} 42... b3 {[%clk
0:00:08.2]} 43. Bf5 {[%clk 0:00:10.4]} 43... Rxd7 {[%clk 0:00:06.5]} 44. Bxc2
{[%clk 0:00:09.9]} 44... bxc2 {[%clk 0:00:05.8]} 45. Rxc2 {[%clk 0:00:11.8]}
45... Rd4 {[%clk 0:00:06.7]} 46. Rc5 {[%clk 0:00:12.4]} 46... Nc4 {[%clk
0:00:07.7]} 47. f4 {[%clk 0:00:10.1]} 47... Kh7 {[%clk 0:00:09.1]} 48. Kf3
{[%clk 0:00:10.4]} 48... Kg8 {[%clk 0:00:08]} 49. g4 {[%clk 0:00:11.6]} 49...
Kf7 {[%clk 0:00:09]} 50. g5 {[%clk 0:00:12.6]} 50... Ke6 {[%clk 0:00:08.8]} 51.
h6 {[%clk 0:00:12.5]} 51... gxh6 {[%clk 0:00:09.8]} 52. gxh6 {[%clk 0:00:14.4]}
52... Kf6 {[%clk 0:00:11.3]} 53. Rc7 {[%clk 0:00:14.9]} 53... Nd6 {[%clk
0:00:08]} 54. h7 {[%clk 0:00:14.5]} 54... Rd2 {[%clk 0:00:03.1]} 55. h8=Q+
{[%clk 0:00:15]} 1-0

[Event "GrandPrix_29.05"]
[Site "Chess.com"]
[Date "2020.05.29"]
[Round "6"]
[White "Bestromano"]
[Black "GMStefanova"]
[Result "0-1"]
[WhiteElo "2108"]
[BlackElo "2375"]
[TimeControl "600+2"]
[EndTime "12:03:28 PDT"]
[Termination "GMStefanova won by resignation"]

1. e4 {[%clk 0:10:01.9]} 1... c6 {[%clk 0:10:00.7]} 2. d4 {[%clk 0:10:02.1]}
2... d5 {[%clk 0:10:01.5]} 3. e5 {[%clk 0:10:03]} 3... c5 {[%clk 0:10:01.9]} 4.
dxc5 {[%clk 0:10:01.3]} 4... e6 {[%clk 0:10:01.8]} 5. Be3 {[%clk 0:09:56.1]}
5... Nd7 {[%clk 0:09:49.4]} 6. Nf3 {[%clk 0:09:48.4]} 6... Bxc5 {[%clk
0:09:42.2]} 7. Bxc5 {[%clk 0:09:44]} 7... Nxc5 {[%clk 0:09:42.7]} 8. a3 {[%clk
0:09:38.9]} 8... Ne7 {[%clk 0:09:36.5]} 9. Bd3 {[%clk 0:09:22.5]} 9... Qc7
{[%clk 0:09:30]} 10. O-O {[%clk 0:09:21.5]} 10... Ng6 {[%clk 0:09:29.9]} 11. Re1
{[%clk 0:09:17.5]} 11... O-O {[%clk 0:09:28.6]} 12. Nc3 {[%clk 0:08:47.3]} 12...
a6 {[%clk 0:09:28.5]} 13. Bxg6 {[%clk 0:08:27.1]} 13... fxg6 {[%clk 0:09:26.8]}
14. Qd4 {[%clk 0:08:17.7]} 14... Bd7 {[%clk 0:09:18.3]} 15. Qh4 {[%clk 0:07:56]}
15... h6 {[%clk 0:09:09.8]} 16. Rad1 {[%clk 0:07:31.3]} 16... g5 {[%clk
0:08:06.2]} 17. Qg3 {[%clk 0:07:08]} 17... Be8 {[%clk 0:07:57.2]} 18. h4 {[%clk
0:06:54.2]} 18... Bh5 {[%clk 0:07:32.3]} 19. hxg5 {[%clk 0:06:44.8]} 19... Bxf3
{[%clk 0:07:31.8]} 20. gxf3 {[%clk 0:06:43.6]} 20... hxg5 {[%clk 0:07:31.9]} 21.
Rd4 {[%clk 0:06:28.3]} 21... Rf5 {[%clk 0:07:24.7]} 22. Rg4 {[%clk 0:06:26.1]}
22... Raf8 {[%clk 0:07:17.4]} 23. Re3 {[%clk 0:06:27]} 23... Qe7 {[%clk
0:07:13.6]} 24. Ne2 {[%clk 0:06:19.3]} 24... Nd7 {[%clk 0:06:55.6]} 25. Nd4
{[%clk 0:06:15]} 25... Rf4 {[%clk 0:06:53.6]} 26. c3 {[%clk 0:05:59.3]} 26...
Rxg4 {[%clk 0:06:45.4]} 27. Qxg4 {[%clk 0:05:59.4]} 27... Nc5 {[%clk 0:06:38.6]}
28. Kg2 {[%clk 0:05:53.7]} 28... Rf4 {[%clk 0:06:35]} 29. Qg3 {[%clk 0:05:51.8]}
29... Nd7 {[%clk 0:06:21.8]} 30. Re1 {[%clk 0:05:25.9]} 30... Nf8 {[%clk
0:06:15.7]} 31. Rh1 {[%clk 0:05:09.4]} 31... Ng6 {[%clk 0:06:03.9]} 32. Rh5
{[%clk 0:05:10.4]} 32... Rxd4 {[%clk 0:05:44.3]} 33. Rxg5 {[%clk 0:04:39.7]}
33... Nh4+ {[%clk 0:05:29.4]} 34. Kf1 {[%clk 0:04:13.2]} 34... Rc4 {[%clk
0:05:16.4]} 35. b3 {[%clk 0:04:12.2]} 35... Rxc3 {[%clk 0:04:42.7]} 36. Qxh4
{[%clk 0:04:10.6]} 36... Rxf3 {[%clk 0:04:41.4]} 37. Qg4 {[%clk 0:03:50.3]}
37... Rxb3 {[%clk 0:04:35.9]} 38. Rg6 {[%clk 0:03:50.2]} 38... Rb6 {[%clk
0:04:31.2]} 39. Kg2 {[%clk 0:03:26.6]} 39... Rc6 {[%clk 0:04:29.3]} 40. Rh6
{[%clk 0:03:19]} 40... Qf7 {[%clk 0:02:54.8]} 41. Rf6 {[%clk 0:03:13.1]} 41...
Rc4 {[%clk 0:02:45.5]} 42. Qg5 {[%clk 0:02:28.2]} 42... Qe8 {[%clk 0:01:36.9]}
43. Rg6 {[%clk 0:01:58.6]} 43... Qd7 {[%clk 0:01:37.8]} 44. Rh6 {[%clk
0:01:51.1]} 44... d4 {[%clk 0:01:28.1]} 45. Qg6 {[%clk 0:01:04.3]} 45... Qd5+
{[%clk 0:00:19.7]} 46. f3 {[%clk 0:01:03.7]} 46... Rc2+ {[%clk 0:00:15.2]} 47.
Qxc2 {[%clk 0:00:35.9]} 47... gxh6 {[%clk 0:00:14.9]} 48. Qg6+ {[%clk
0:00:37.1]} 48... Kf8 {[%clk 0:00:15.9]} 49. Qxh6+ {[%clk 0:00:27.3]} 49... Ke7
{[%clk 0:00:16]} 50. Qg7+ {[%clk 0:00:21.7]} 50... Kd8 {[%clk 0:00:16.5]} 51.
Kf2 {[%clk 0:00:23.3]} 51... Kc8 {[%clk 0:00:16.5]} 52. Qf8+ {[%clk 0:00:15.2]}
52... Kc7 {[%clk 0:00:16.8]} 53. Qe7+ {[%clk 0:00:16.3]} 53... Kb8 {[%clk
0:00:16.3]} 54. Qd6+ {[%clk 0:00:12]} 54... Qxd6 {[%clk 0:00:16.3]} 55. exd6
{[%clk 0:00:13.5]} 55... Kc8 {[%clk 0:00:17.6]} 56. Ke2 {[%clk 0:00:15.2]} 56...
Kd7 {[%clk 0:00:18.3]} 57. Kd3 {[%clk 0:00:16.5]} 57... e5 {[%clk 0:00:18.8]}
58. f4 {[%clk 0:00:16.8]} 58... Kxd6 {[%clk 0:00:19.7]} 59. fxe5+ {[%clk
0:00:18.4]} 59... Kxe5 {[%clk 0:00:20.9]} 0-1